[Event "ESCC-65 2022"]
[Site "Lublin"]
[Date "2022.07.10"]
[Round "6.11"]
[White "Wagner-Michel, Annett"]
[Black "Sosnowska, Elzbieta"]
[Result "0-1"]
[ECO "C44"]
[WhiteElo "2056"]
[BlackElo "1726"]
[Annotator "NA RC"]
[PlyCount "94"]
[EventDate "2022.07.05"]
[EventType "swiss"]
[EventCountry "POL"]
[SourceTitle "playchess.com"]
[Source "ChessBase"]
[SourceQuality "1"]
[TimeControl "40/5400+30:1800+30"]

1. e4 {[%emt 0:00:05]} e5 {[%emt 0:00:14]} 2. Nf3 {[%emt 0:00:03]} Nc6 {[%emt 0:00:15]} 3. d4 {[%emt 0:00:19]} exd4 {[%emt 0:00:10]} 4. Nxd4 Nge7 {[%emt 0:00:58]} 5. Bc4 {[%emt 0:00:48]} Nxd4 {[%emt 0:03:00]} 6. Qxd4 {[%emt 0:00:09]} Nc6 {[%emt 0:00:09]} 7. Qe3 {[%emt 0:06:30]} Qf6 {[%emt 0:04:24]} 8. Nc3 {[%emt 0:02:37]} Bb4 {[%emt 0:00:19]} 9. Bd2 {[%emt 0:00:43]} O-O {[%emt 0:07:45]} 10. O-O-O {[%emt 0:05:50]} d6 {[%emt 0:05:03]} 11. Nd5 {[%emt 0:08:18]} Bxd2+ {[%emt 0:00:12]} 12. Rxd2 {[%emt 0:00:30]} Qd8 {[%emt 0:00:16]} 13. f4 {[%emt 0:11:36]} Ne7 {[%emt 0:00:43]} 14. Nc3 {[%emt 0:06:57]} Be6 {[%emt 0:00:11]} 15. Be2 {[%emt 0:01:44]} f6 {[%emt 0:01:15]} 16. g4 {[%emt 0:00:59]} Qe8 {[%emt 0:02:13]} 17. h4 {[%emt 0:09:13]} Qc6 {[%emt 0:02:22]} 18. h5 {[%emt 0:05:57]} h6 {[%emt 0:00:40]} 19. Rg1 {[%emt 0:01:41]} Qc5 {[%emt 0:04:49]} 20. Qg3 {[%emt 0:01:37]} Kh8 {[%emt 0:01:49]} 21. Bd3 $14 {[%emt 0:04:32]} a6 {[%emt 0:06:36]} 22. Rdg2 {[%emt 0:02:26]} b5 {[%emt 0:07:01]} 23. g5 {[%emt 0:08:54]} hxg5 {[%emt 0:00:09]} 24. e5 {[%emt 0:01:42]} dxe5 {[%emt 0:00:31]} 25. fxg5 {[%emt 0:00:42]} f5 {[%emt 0:00:05]} 26. g6 {[%emt 0:00:29]} e4 {[%emt 0:06:42]} 27. Be2 {[%emt 0:04:31]} f4 {[%emt 0:00:32]} 28. Nxe4 {[%emt 0:00:14]} Qxg1+ {[%emt 0:00:04]} 29. Rxg1 {[%emt 0:00:14]} fxg3 {[%emt 0:00:09]} 30. Rxg3 {[%emt 0:01:31]} Nf5 {[%emt 0:01:05]} 31. Rg5 {[%emt 0:01:11]} Nd4 {[%emt 0:01:57]} 32. Bd3 {[%emt 0:00:27]} Rf5 {[%emt 0:02:27]} 33. c3 {[%emt 0:02:05]} Rxg5 {[%emt 0:00:26]} 34. Nxg5 {[%emt 0:00:07]} Bf5 {[%emt 0:00:04]} 35. Bf1 {[%emt 0:02:50]} Ne6 {[%emt 0:02:01]} 36. Nf7+ {[%emt 0:00:33]} Kg8 {[%emt 0:00:05]} 37. Bg2 {[%emt 0:00:16]} Re8 {[%emt 0:00:58]} 38. Bd5 {[%emt 0:01:09]} Kf8 {[%emt 0:01:14]} 39. Bc6 {[%emt 0:04:35]} Re7 {[%emt 0:00:35]} 40. a4 {[%emt 0:00:00]} bxa4 {[%emt 0:00:00]} 41. Bxa4 {[%emt 0:00:33]} Nf4 {[%emt 0:03:16]} 42. Ng5 {[%emt 0:03:03]} Nxh5 {[%emt 0:01:47]} 43. Nh7+ {[%emt 0:00:43]} Kg8 {[%emt 0:00:01]} 44. Bb3+ {[%emt 0:01:07]} Kh8 {[%emt 0:00:01]} 45. Bf7 {[%emt 0:01:52]} Nf4 {[%emt 0:03:48]} 46. Nf8 {[%emt 0:04:15]} Re1+ {[%emt 0:00:22]} 47. Kd2 {[%emt 0:00:02]} Re2+ {[%emt 0:00:24]} 0-1

[Event "ESCC-65 2022"]
[Site "Lublin"]
[Date "2022.07.10"]
[Round "6.12"]
[White "Hewson, Brian W R"]
[Black "Severcan, Sedat Sabri"]
[Result "1-0"]
[ECO "D35"]
[WhiteElo "2049"]
[BlackElo "1849"]
[Annotator "NA RC"]
[PlyCount "93"]
[EventDate "2022.07.05"]
[EventType "swiss"]
[EventCountry "POL"]
[SourceTitle "playchess.com"]
[Source "ChessBase"]
[SourceQuality "1"]
[TimeControl "40/5400+30:1800+30"]

1. d4 {[%emt 0:00:08]} Nf6 {[%emt 0:00:08]} 2. c4 {[%emt 0:00:10]} e6 {[%emt 0:00:10]} 3. Nc3 {[%emt 0:01:38]} d5 {[%emt 0:01:11]} 4. cxd5 {[%emt 0:02:55]} exd5 {[%emt 0:00:12]} 5. Bg5 {[%emt 0:00:09]} Be7 {[%emt 0:00:21]} 6. e3 {[%emt 0:00:12]} O-O {[%emt 0:00:19]} 7. Bd3 {[%emt 0:00:07]} h6 {[%emt 0:03:03]} 8. Bh4 {[%emt 0:00:37]} c6 {[%emt 0:01:35]} 9. Nge2 {[%emt 0:00:18]} b5 {[%emt 0:05:31]} 10. O-O {[%emt 0:03:40]} Bb7 {[%emt 0:14:37]} 11. Rc1 {[%emt 0:11:31]} Nbd7 {[%emt 0:02:16]} 12. Bb1 {[%emt 0:06:50]} Re8 {[%emt 0:04:56]} 13. Re1 $11 {[%emt 0:10:33]} Nf8 {[%emt 0:13:37]} 14. Bg3 {[%emt 0:09:23]} Bd6 {[%emt 0:16:41]} 15. Bxd6 {[%emt 0:03:25]} Qxd6 {[%emt 0:00:11]} 16. Nf4 {[%emt 0:00:15]} Bc8 {[%emt 0:02:33]} 17. Nce2 {[%emt 0:06:36]} g5 {[%emt 0:02:54]} 18. Nd3 {[%emt 0:00:52]} Bg4 {[%emt 0:04:07]} 19. Qc2 {[%emt 0:08:52]} Rac8 {[%emt 0:02:15]} 20. Ng3 {[%emt 0:01:41]} Ng6 {[%emt 0:03:44]} 21. Qc5 {[%emt 0:12:36]} Qxc5 {[%emt 0:06:29]} 22. Nxc5 {[%emt 0:00:37]} Nf8 {[%emt 0:01:43]} 23. Bf5 {[%emt 0:02:41]} Rb8 {[%emt 0:01:50]} 24. Nd3 {[%emt 0:03:12]} Rb6 {[%emt 0:02:46]} 25. Ne5 {[%emt 0:01:04]} Bxf5 {[%emt 0:00:33]} 26. Nxf5 {[%emt 0:00:07]} Kh7 {[%emt 0:02:34]} 27. Nxc6 {[%emt 0:04:09]} Ne6 {[%emt 0:03:19]} 28. Ne5 {[%emt 0:03:00]} h5 {[%emt 0:00:40]} 29. h3 {[%emt 0:00:28]} Ne4 {[%emt 0:00:51]} 30. f3 {[%emt 0:01:50]} Nf6 {[%emt 0:00:39]} 31. g4 {[%emt 0:01:39]} h4 {[%emt 0:00:19]} 32. Nxf7 {[%emt 0:00:11]} a5 {[%emt 0:00:54]} 33. Rc2 {[%emt 0:00:15]} Nd7 {[%emt 0:00:40]} 34. Rec1 {[%emt 0:00:39]} Kg6 {[%emt 0:00:32]} 35. N7d6 {[%emt 0:00:04]} Reb8 {[%emt 0:00:29]} 36. Rc8 {[%emt 0:00:49]} Kf6 {[%emt 0:00:34]} 37. Rxb8 {[%emt 0:00:28]} Rxb8 {[%emt 0:00:02]} 38. Kf2 {[%emt 0:00:55]} b4 {[%emt 0:00:16]} 39. b3 {[%emt 0:00:26]} a4 {[%emt 0:00:17]} 40. Ke2 {[%emt 0:00:00]} axb3 {[%emt 0:00:00]} 41. axb3 {[%emt 0:02:18]} Ra8 {[%emt 0:00:30]} 42. Rc8 {[%emt 0:04:49]} Ra2+ {[%emt 0:02:15]} 43. Kd3 {[%emt 0:00:13]} Ndf8 {[%emt 0:15:17]} 44. Rb8 {[%emt 0:01:22]} Rf2 {[%emt 0:03:51]} 45. Rb7 {[%emt 0:03:08]} Rxf3 {[%emt 0:05:45]} 46. Rf7+ {[%emt 0:00:11]} Kg6 {[%emt 0:00:04]} 47. Ne7+ {[%emt 0:00:09]} 1-0

[Event "ESCC-65 2022"]
[Site "Lublin"]
[Date "2022.07.10"]
[Round "6.13"]
[White "Praszak, Michal"]
[Black "Berkley, Stephen W"]
[Result "1-0"]
[ECO "E10"]
[WhiteElo "2048"]
[BlackElo "1525"]
[Annotator "NA RC"]
[PlyCount "61"]
[EventDate "2022.07.05"]
[EventType "swiss"]
[EventCountry "POL"]
[SourceTitle "playchess.com"]
[Source "ChessBase"]
[SourceQuality "1"]
[TimeControl "40/5400+30:1800+30"]

1. d4 {[%emt 0:02:48]} e6 {[%emt 0:00:28]} 2. c4 {[%emt 0:01:35]} Nf6 {[%emt 0:00:07]} 3. Nf3 {[%emt 0:00:12]} c5 {[%emt 0:00:12]} 4. d5 {[%emt 0:00:15]} exd5 {[%emt 0:00:56]} 5. cxd5 {[%emt 0:00:11]} d6 {[%emt 0:00:04]} 6. h3 {[%emt 0:00:27]} a6 {[%emt 0:01:12]} 7. a4 {[%emt 0:00:09]} g6 {[%emt 0:06:08]} 8. Nc3 {[%emt 0:00:46]} Bg7 {[%emt 0:00:45]} 9. Bg5 {[%emt 0:00:10]} Nbd7 {[%emt 0:03:36]} 10. e3 {[%emt 0:00:13]} O-O {[%emt 0:00:29]} 11. Be2 {[%emt 0:00:17]} Re8 {[%emt 0:03:58]} 12. O-O {[%emt 0:00:52]} Qc7 {[%emt 0:03:39]} 13. Nd2 {[%emt 0:00:34]} b6 {[%emt 0:22:40]} 14. Rc1 {[%emt 0:04:42]} Bb7 {[%emt 0:04:57]} 15. e4 {[%emt 0:01:41]} Rac8 {[%emt 0:03:03]} 16. b3 {[%emt 0:01:30]} h6 {[%emt 0:03:29]} 17. Be3 {[%emt 0:01:17]} (17. Bh4 $16) 17... Ne5 {[%emt 0:07:19]} 18. f4 {[%emt 0:02:04]} Ned7 {[%emt 0:00:03]} 19. Bf2 {[%emt 0:00:15]} g5 {[%emt 0:04:59]} 20. g3 {[%emt 0:00:26]} gxf4 {[%emt 0:01:22]} 21. gxf4 {[%emt 0:00:02]} Kh8 {[%emt 0:00:51]} 22. Bf3 {[%emt 0:00:39]} Rg8 {[%emt 0:01:30]} 23. Kh2 {[%emt 0:00:08]} Rce8 {[%emt 0:00:39]} 24. Nc4 {[%emt 0:00:46]} Qb8 {[%emt 0:00:57]} 25. Re1 $16 {[%emt 0:07:54]} Ba8 {[%emt 0:04:20]} 26. Bg3 {[%emt 0:02:11]} b5 {[%emt 0:05:11]} 27. axb5 {[%emt 0:01:24]} axb5 {[%emt 0:00:54]} 28. Nxb5 {[%emt 0:05:49]} Qxb5 {[%emt 0:03:23]} 29. Nxd6 {[%emt 0:00:04]} Qb4 {[%emt 0:00:48]} 30. Rc4 {[%emt 0:01:34]} Qb6 {[%emt 0:02:57]} 31. Nxf7+ {[%emt 0:00:53]} 1-0

[Event "ESCC-65 2022"]
[Site "Lublin"]
[Date "2022.07.10"]
[Round "6.14"]
[White "Gromowski, Stanislaw"]
[Black "Kasprzyk, Irena"]
[Result "1-0"]
[ECO "B50"]
[WhiteElo "1613"]
[BlackElo "2017"]
[Annotator "NA RC"]
[PlyCount "65"]
[EventDate "2022.07.05"]
[EventType "swiss"]
[EventCountry "POL"]
[SourceTitle "playchess.com"]
[Source "ChessBase"]
[SourceQuality "1"]
[TimeControl "40/5400+30:1800+30"]

1. e4 {[%emt 0:00:28]} c5 {[%emt 0:00:10]} 2. Nf3 {[%emt 0:00:10]} d6 {[%emt 0:00:10]} 3. Bc4 {[%emt 0:00:10]} e5 {[%emt 0:00:11]} 4. c3 {[%emt 0:00:19]} Be7 {[%emt 0:00:11]} 5. d3 {[%emt 0:00:25]} Nf6 {[%emt 0:00:14]} 6. O-O {[%emt 0:00:19]} O-O {[%emt 0:00:13]} 7. Re1 {[%emt 0:00:10]} Nc6 {[%emt 0:01:28]} 8. Nbd2 {[%emt 0:01:30]} h6 {[%emt 0:00:39]} 9. Bb3 {[%emt 0:00:34]} Be6 {[%emt 0:02:40]} 10. Bc2 {[%emt 0:00:25]} Qc7 {[%emt 0:00:15]} 11. Nf1 {[%emt 0:00:23]} Rfe8 {[%emt 0:03:15]} 12. Ng3 {[%emt 0:00:28]} Bf8 {[%emt 0:00:15]} 13. h3 {[%emt 0:00:39]} g6 {[%emt 0:00:41]} 14. Be3 {[%emt 0:00:52]} d5 {[%emt 0:01:22]} 15. exd5 {[%emt 0:01:56]} Nxd5 {[%emt 0:00:14]} 16. Bd2 {[%emt 0:00:31]} Bg7 {[%emt 0:00:28]} 17. Qc1 {[%emt 0:03:36]} Kh7 {[%emt 0:00:28]} 18. Qd1 {[%emt 0:03:56]} Rad8 {[%emt 0:00:25]} 19. Nh2 {[%emt 0:06:26]} f5 {[%emt 0:01:34]} 20. h4 {[%emt 0:07:19]} b6 {[%emt 0:16:14]} 21. h5 {[%emt 0:00:53]} g5 {[%emt 0:00:25]} 22. a3 {[%emt 0:11:26]} Rf8 {[%emt 0:05:51]} 23. Nf3 {[%emt 0:01:19]} Qe7 {[%emt 0:07:33]} 24. Qe2 {[%emt 0:04:24]} Bd7 {[%emt 0:02:38]} 25. Rad1 {[%emt 0:04:25]} Rde8 {[%emt 0:00:52]} 26. Bc1 {[%emt 0:00:45]} Kh8 {[%emt 0:03:46]} 27. Qd2 {[%emt 0:00:27]} Nf4 {[%emt 0:01:00]} 28. d4 {[%emt 0:02:01]} cxd4 {[%emt 0:00:42]} 29. cxd4 {[%emt 0:00:14]} Qf7 {[%emt 0:03:47]} 30. dxe5 {[%emt 0:02:27]} Bc8 {[%emt 0:03:00]} 31. Qc3 {[%emt 0:02:31]} Ne7 {[%emt 0:02:07]} 32. Rd6 {[%emt 0:06:21]} Nxh5 {[%emt 0:03:23]} 33. Bb3 {[%emt 0:01:45]} 1-0

[Event "ESCC-65 2022"]
[Site "Lublin"]
[Date "2022.07.10"]
[Round "6.15"]
[White "Plesiuk, Jan"]
[Black "Patola, Eero"]
[Result "1-0"]
[ECO "A81"]
[WhiteElo "1573"]
[BlackElo "1810"]
[Annotator "NA RC"]
[PlyCount "65"]
[EventDate "2022.07.05"]
[EventType "swiss"]
[EventCountry "POL"]
[SourceTitle "playchess.com"]
[Source "ChessBase"]
[SourceQuality "1"]
[TimeControl "40/5400+30:1800+30"]

1. d4 {[%emt 0:01:06]} f5 {[%emt 0:00:10]} 2. g3 {[%emt 0:02:07]} Nf6 {[%emt 0:00:20]} 3. Bg2 {[%emt 0:00:10]} g6 {[%emt 0:00:09]} 4. c4 {[%emt 0:00:26]} Bg7 {[%emt 0:00:15]} 5. Nc3 {[%emt 0:00:22]} d6 {[%emt 0:01:02]} 6. f4 {[%emt 0:01:12]} c6 {[%emt 0:00:36]} 7. Nf3 {[%emt 0:00:31]} O-O {[%emt 0:00:20]} 8. b3 {[%emt 0:01:24]} Na6 {[%emt 0:01:12]} 9. O-O {[%emt 0:01:36]} c5 {[%emt 0:00:53]} 10. e3 {[%emt 0:02:48]} h6 {[%emt 0:05:23]} 11. Bb2 {[%emt 0:00:45]} Bd7 {[%emt 0:03:22]} 12. Nh4 {[%emt 0:03:16]} Qe8 {[%emt 0:00:21]} 13. Bxb7 {[%emt 0:00:55]} Nc7 {[%emt 0:00:31]} 14. Bxa8 {[%emt 0:03:18]} Nxa8 {[%emt 0:00:47]} 15. Qd2 {[%emt 0:04:11]} Nc7 {[%emt 0:03:44]} 16. Rad1 {[%emt 0:00:52]} Na6 {[%emt 0:00:48]} 17. d5 {[%emt 0:05:12]} Kh7 {[%emt 0:01:34]} 18. Nf3 {[%emt 0:02:40]} Nc7 {[%emt 0:03:48]} 19. Rfe1 {[%emt 0:00:26]} Qf7 {[%emt 0:01:58]} 20. e4 {[%emt 0:02:16]} fxe4 {[%emt 0:01:27]} 21. Nxe4 {[%emt 0:00:04]} Nxe4 {[%emt 0:01:19]} 22. Rxe4 {[%emt 0:00:04]} Bg4 {[%emt 0:02:06]} 23. Rf1 {[%emt 0:02:59]} e5 {[%emt 0:06:30]} 24. dxe6 {[%emt 0:01:06]} Nxe6 {[%emt 0:00:50]} 25. Bxg7 {[%emt 0:00:35]} Qxg7 {[%emt 0:00:40]} 26. Qxd6 {[%emt 0:01:22]} Rd8 {[%emt 0:05:38]} 27. Qe5 {[%emt 0:11:27]} Qb7 {[%emt 0:01:14]} 28. Nh4 {[%emt 0:03:41]} Bh3 {[%emt 0:01:05]} 29. Rfe1 {[%emt 0:07:38]} g5 {[%emt 0:07:36]} 30. Nf5 {[%emt 0:01:01]} Nd4 {[%emt 0:08:56]} 31. Nxd4 {[%emt 0:02:03]} cxd4 {[%emt 0:01:08]} 32. Qf6 {[%emt 0:04:53]} Rd7 {[%emt 0:06:43]} 33. Re7+ {[%emt 0:00:34]} 1-0

[Event "ESCC-65 2022"]
[Site "Lublin"]
[Date "2022.07.11"]
[Round "7.1"]
[White "Renman, Nils-Gustaf"]
[Black "Malesevic, Nedeljko"]
[Result "1-0"]
[ECO "D00"]
[WhiteElo "2311"]
[BlackElo "2228"]
[Annotator "ChessBase"]
[PlyCount "83"]
[EventDate "2022.07.05"]
[EventType "swiss"]
[EventCountry "POL"]
[SourceTitle "playchess.com"]
[Source "ChessBase"]
[SourceQuality "1"]
[TimeControl "40/5400+30:1800+30"]

1. d4 {[%emt 0:00:04]} d5 {[%emt 0:00:08]} 2. Bf4 {[%emt 0:00:21]} c6 {[%emt 0:00:53]} 3. e3 {[%emt 0:00:17]} Qb6 {[%emt 0:01:57]} 4. Qc1 {[%emt 0:01:49]} Bf5 {[%emt 0:01:12]} 5. c4 {[%emt 0:00:33]} Nf6 {[%emt 0:05:50]} 6. Nc3 {[%emt 0:00:18]} dxc4 {[%emt 0:05:38]} 7. Bxc4 {[%emt 0:00:40]} e6 {[%emt 0:00:39]} 8. Nf3 {[%emt 0:00:14]} Be7 {[%emt 0:04:33]} 9. O-O {[%emt 0:02:51]} O-O {[%emt 0:02:28]} 10. Re1 {[%emt 0:15:52]} Nbd7 {[%emt 0:07:55]} 11. e4 {[%emt 0:05:11]} Bg4 {[%emt 0:04:33]} 12. Be3 {[%emt 0:04:56]} Qa5 {[%emt 0:04:05]} 13. Nd2 {[%emt 0:01:55]} b5 {[%emt 0:11:23]} 14. Bb3 {[%emt 0:03:29]} e5 {[%emt 0:06:23]} 15. f3 {[%emt 0:02:25]} exd4 {[%emt 0:04:32]} 16. Bxd4 {[%emt 0:00:03]} Bc5 {[%emt 0:02:35]} 17. Bxc5 {[%emt 0:07:15]} Nxc5 {[%emt 0:00:15]} 18. Bc2 {[%emt 0:00:38]} Qb6 {[%emt 0:04:12]} 19. Kh1 {[%emt 0:00:02]} Be6 {[%emt 0:03:00]} 20. b4 {[%emt 0:11:43]} Ncd7 {[%emt 0:04:21]} 21. e5 {[%emt 0:09:01]} Nd5 {[%emt 0:01:18]} 22. Nxd5 {[%emt 0:00:57]} cxd5 {[%emt 0:00:43]} 23. Nb3 {[%emt 0:01:41]} Rac8 {[%emt 0:04:16]} 24. Qd2 {[%emt 0:00:17]} Rc4 {[%emt 0:01:35]} 25. Bd3 {[%emt 0:01:49]} Rc7 {[%emt 0:03:17]} 26. Nd4 {[%emt 0:09:59]} a6 {[%emt 0:00:50]} 27. a4 {[%emt 0:00:17]} Kh8 {[%emt 0:01:19]} 28. Bf1 {[%emt 0:00:27]} Qb8 {[%emt 0:04:10]} 29. axb5 {[%emt 0:00:20]} axb5 {[%emt 0:00:06]} 30. Bxb5 {[%emt 0:01:01]} Nb6 {[%emt 0:02:17]} 31. f4 {[%emt 0:03:40]} Nc4 {[%emt 0:01:41]} 32. Qf2 {[%emt 0:05:30]} Bd7 {[%emt 0:01:52]} 33. Bxd7 {[%emt 0:01:44]} Rxd7 {[%emt 0:00:07]} 34. b5 {[%emt 0:00:11]} Rb7 {[%emt 0:01:33]} 35. Ra6 {[%emt 0:01:38]} Qc7 {[%emt 0:00:48]} 36. Rea1 {[%emt 0:01:06]} Qc5 {[%emt 0:00:49]} 37. Qg1 {[%emt 0:04:53]} Nd2 {[%emt 0:01:04]} 38. Ra8 {[%emt 0:01:19]} Rbb8 {[%emt 0:00:20]} 39. Rxb8 {[%emt 0:00:08]} Rxb8 {[%emt 0:00:18]} 40. Nc6 {[%emt 0:00:00]} Qxb5 {[%emt 0:00:00]} 41. Nxb8 {[%emt 0:00:55]} Qxb8 {[%emt 0:04:17]} 42. Qa7 {[%emt 0:00:52]} 1-0

[Event "ESCC-65 2022"]
[Site "Lublin"]
[Date "2022.07.11"]
[Round "7.2"]
[White "Bogdanov, Valentin"]
[Black "Lederman, Leon"]
[Result "1/2-1/2"]
[ECO "D52"]
[WhiteElo "2333"]
[BlackElo "2213"]
[Annotator "ChessBase"]
[PlyCount "28"]
[EventDate "2022.07.05"]
[EventType "swiss"]
[EventCountry "POL"]
[SourceTitle "playchess.com"]
[Source "ChessBase"]
[SourceQuality "1"]
[TimeControl "40/5400+30:1800+30"]

1. d4 {[%emt 0:00:02]} d5 {[%emt 0:00:07]} 2. c4 {[%emt 0:00:10]} e6 {[%emt 0:00:04]} 3. Nc3 {[%emt 0:00:20]} Nf6 {[%emt 0:00:05]} 4. Bg5 {[%emt 0:00:16]} c6 {[%emt 0:00:20]} 5. e3 {[%emt 0:00:40]} Nbd7 {[%emt 0:00:04]} 6. Nf3 {[%emt 0:00:57]} Qa5 {[%emt 0:00:19]} 7. cxd5 {[%emt 0:01:22]} Nxd5 {[%emt 0:00:45]} 8. Qd2 {[%emt 0:00:16]} Bb4 {[%emt 0:03:00]} 9. Rc1 {[%emt 0:00:08]} h6 {[%emt 0:00:42]} 10. Bh4 {[%emt 0:00:41]} O-O {[%emt 0:00:09]} 11. a3 {[%emt 0:07:52]} Bd6 {[%emt 0:04:28]} 12. Bd3 {[%emt 0:05:41]} Nxc3 {[%emt 0:01:41]} 13. Rxc3 {[%emt 0:03:42]} e5 {[%emt 0:01:11]} 14. O-O {[%emt 0:06:48]} Re8 {[%emt 0:02:56]} 1/2-1/2

[Event "ESCC-65 2022"]
[Site "Lublin"]
[Date "2022.07.11"]
[Round "7.3"]
[White "Petran, Peter"]
[Black "Schulz, Michael"]
[Result "1-0"]
[ECO "A00"]
[WhiteElo "2234"]
[BlackElo "2217"]
[Annotator "ChessBase"]
[PlyCount "79"]
[EventDate "2022.07.05"]
[EventType "swiss"]
[EventCountry "POL"]
[SourceTitle "playchess.com"]
[Source "ChessBase"]
[SourceQuality "1"]
[TimeControl "40/5400+30:1800+30"]

1. g3 {[%emt 0:00:04]} e5 {[%emt 0:00:17]} 2. Bg2 {[%emt 0:00:35]} Nf6 {[%emt 0:00:09]} 3. c4 {[%emt 0:02:58]} d5 {[%emt 0:00:08]} 4. cxd5 {[%emt 0:00:19]} Nxd5 {[%emt 0:00:05]} 5. Nc3 {[%emt 0:00:08]} Nb6 {[%emt 0:00:07]} 6. d3 {[%emt 0:00:15]} Be7 {[%emt 0:00:19]} 7. Be3 {[%emt 0:06:02]} O-O {[%emt 0:00:29]} 8. Nf3 {[%emt 0:01:01]} Nc6 {[%emt 0:00:07]} 9. O-O {[%emt 0:00:09]} Be6 {[%emt 0:00:58]} 10. a3 {[%emt 0:01:00]} a5 {[%emt 0:02:15]} 11. Rc1 {[%emt 0:02:40]} f5 {[%emt 0:08:20]} 12. Na4 {[%emt 0:05:03]} e4 {[%emt 0:05:42]} 13. Ne1 {[%emt 0:00:22]} Nd5 {[%emt 0:04:54]} 14. Bd2 {[%emt 0:04:26]} Nf6 {[%emt 0:04:14]} 15. Nc5 {[%emt 0:02:01]} Bxc5 {[%emt 0:00:29]} 16. Rxc5 {[%emt 0:00:05]} Nd4 {[%emt 0:02:10]} 17. Bc3 {[%emt 0:05:43]} b6 {[%emt 0:05:39]} 18. Bxd4 {[%emt 0:00:18]} Qxd4 19. Rc3 {[%emt 0:04:33]} c5 {[%emt 0:03:46]} 20. Nc2 {[%emt 0:01:29]} Qa4 {[%emt 0:03:20]} 21. Ne3 {[%emt 0:00:40]} Qxd1 {[%emt 0:01:26]} 22. Rxd1 {[%emt 0:00:15]} Rad8 {[%emt 0:00:46]} 23. dxe4 {[%emt 0:21:07]} fxe4 {[%emt 0:00:25]} 24. Rxd8 {[%emt 0:10:17]} Rxd8 {[%emt 0:00:05]} 25. f3 {[%emt 0:04:09]} a4 {[%emt 0:05:39]} 26. fxe4 {[%emt 0:00:51]} Rd2 {[%emt 0:00:10]} 27. Rc2 {[%emt 0:00:28]} Rd4 {[%emt 0:00:33]} 28. Kf2 {[%emt 0:05:36]} Bb3 {[%emt 0:09:46]} 29. Rc3 {[%emt 0:00:15]} Rd2 {[%emt 0:00:25]} 30. Rd3 {[%emt 0:00:09]} Rxb2 {[%emt 0:00:39]} 31. e5 {[%emt 0:00:42]} Ne8 {[%emt 0:00:54]} 32. Bc6 {[%emt 0:02:12]} Bf7 {[%emt 0:02:58]} 33. Rd8 {[%emt 0:03:47]} Kf8 {[%emt 0:00:12]} 34. Nf5 {[%emt 0:05:46]} Bh5 {[%emt 0:01:07]} 35. g4 {[%emt 0:01:06]} Bxg4 {[%emt 0:00:44]} 36. Rxe8+ {[%emt 0:00:22]} Kf7 {[%emt 0:00:09]} 37. Nd6+ {[%emt 0:00:29]} Kg6 {[%emt 0:00:22]} 38. Be4+ {[%emt 0:01:13]} Kh5 {[%emt 0:00:23]} 39. Bd3 {[%emt 0:01:00]} b5 {[%emt 0:02:55]} 40. Bxb5 {[%emt 0:00:00]} 1-0

[Event "ESCC-65 2022"]
[Site "Lublin"]
[Date "2022.07.11"]
[Round "7.4"]
[White "Biro, Sandor"]
[Black "Dobosz, Henryk"]
[Result "1-0"]
[ECO "C47"]
[WhiteElo "2116"]
[BlackElo "2354"]
[Annotator "ChessBase"]
[PlyCount "79"]
[EventDate "2022.07.05"]
[EventType "swiss"]
[EventCountry "POL"]
[SourceTitle "playchess.com"]
[Source "ChessBase"]
[SourceQuality "1"]
[TimeControl "40/5400+30:1800+30"]

1. e4 {[%emt 0:00:07]} e5 {[%emt 0:00:10]} 2. Nf3 {[%emt 0:00:07]} Nc6 {[%emt 0:00:06]} 3. Nc3 {[%emt 0:00:36]} Nf6 {[%emt 0:02:37]} 4. g3 {[%emt 0:02:30]} Bc5 {[%emt 0:01:58]} 5. Bg2 {[%emt 0:00:06]} d6 {[%emt 0:01:24]} 6. d3 {[%emt 0:00:21]} a6 {[%emt 0:17:45]} 7. Be3 {[%emt 0:04:24]} Ba7 {[%emt 0:04:10]} 8. O-O {[%emt 0:03:20]} O-O {[%emt 0:00:15]} 9. Qd2 {[%emt 0:04:28]} h6 {[%emt 0:11:10]} 10. Rae1 {[%emt 0:02:03]} Be6 {[%emt 0:02:17]} 11. Nh4 {[%emt 0:02:02]} Nd4 {[%emt 0:01:36]} 12. Nd5 {[%emt 0:09:32]} Ng4 {[%emt 0:12:02]} 13. c3 {[%emt 0:05:01]} Nxe3 {[%emt 0:03:34]} 14. fxe3 {[%emt 0:00:47]} Nc6 {[%emt 0:00:29]} 15. Nf5 {[%emt 0:04:30]} Bxd5 {[%emt 0:03:34]} 16. exd5 {[%emt 0:01:22]} Ne7 {[%emt 0:00:02]} 17. g4 {[%emt 0:09:16]} Bb6 {[%emt 0:08:11]} 18. Kh1 {[%emt 0:02:49]} c5 {[%emt 0:03:20]} 19. dxc6 {[%emt 0:05:36]} bxc6 {[%emt 0:02:10]} 20. Nxe7+ {[%emt 0:01:19]} Qxe7 {[%emt 0:00:07]} 21. Bxc6 {[%emt 0:00:08]} Ra7 {[%emt 0:00:02]} 22. Qg2 {[%emt 0:03:03]} Bd8 {[%emt 0:01:09]} 23. Re2 {[%emt 0:08:52]} Qc7 {[%emt 0:04:28]} 24. Bd5 {[%emt 0:10:06]} Bh4 {[%emt 0:00:12]} 25. Qe4 {[%emt 0:02:28]} Qd8 {[%emt 0:03:56]} 26. b4 {[%emt 0:05:13]} Kh8 {[%emt 0:05:46]} 27. c4 {[%emt 0:02:51]} Qb6 {[%emt 0:00:53]} 28. a3 {[%emt 0:01:52]} Re7 {[%emt 0:00:07]} 29. Rf3 {[%emt 0:02:30]} g6 {[%emt 0:01:48]} 30. Rc2 {[%emt 0:02:18]} a5 {[%emt 0:03:28]} 31. c5 {[%emt 0:00:43]} dxc5 {[%emt 0:00:07]} 32. Rxc5 {[%emt 0:00:17]} axb4 {[%emt 0:00:07]} 33. Rc6 {[%emt 0:01:00]} Qd8 {[%emt 0:00:18]} 34. axb4 {[%emt 0:00:36]} Bg5 {[%emt 0:00:34]} 35. Qc4 {[%emt 0:01:18]} Qd7 {[%emt 0:01:05]} 36. Rxg6 {[%emt 0:01:13]} Rd8 {[%emt 0:01:10]} 37. Bxf7 {[%emt 0:01:27]} Qb7 {[%emt 0:02:04]} 38. e4 {[%emt 0:01:01]} Rf8 {[%emt 0:02:17]} 39. Bd5 {[%emt 0:00:29]} Qb8 {[%emt 0:00:16]} 40. Rxf8+ {[%emt 0:00:00]} 1-0